bitfinex-derivatives/quotes_ETHF0:USTF0_20250430
["timestamp","ask_amount","ask_price","bid_price","bid_amount"]
[1746032680454,5.5151,1770.6,1770.5,4.95756]
[1746032682857,6.6446,1770.6,1770.5,4.95756]
[1746032683159,7.13718331,1770.6,1770.5,4.95756]
[1746032684155,7.13718331,1770.6,1770.5,1.12956]
[1746032699672,6.00768331,1770.6,1770.5,1.12956]
[1746032700369,5.5151,1770.6,1770.5,1.12956]
[1746032700670,7.13718331,1770.6,1770.5,1.12956]
[1746032701972,1.12963,1770.5,1770.3,1.639]
[1746032702171,4.83001331,1770.4,1770.3,1.12963]
[1746032702560,5.93983,1770.4,1770.3,1.12963]
[1746032702971,4.8102,1770.4,1770.3,1.12963]
[1746032703271,4.8102,1770.4,1770.3,4.95763]
[1746032703469,6.43241331,1770.4,1770.3,3.828]
[1746032704166,1.12982,1770.1,1770.0,1.12984]
[1746032704966,2.78312,1770.1,1770.0,1.12984]
[1746032705773,3.777,1770.2,1770.1,1.12982]
[1746032706077,6.56007,1770.2,1770.1,1.12982]
[1746032707274,1.12982,1770.1,1770.0,2.78512]
[1746032707477,2.78312,1770.1,1770.0,2.78512]
[1746032708172,2.78312,1770.1,1770.0,6.61312]
[1746032708374,2.78312,1770.1,1770.0,4.95782]
[1746032711775,3.27570331,1770.1,1770.0,4.95782]
[1746032713177,3.27570331,1770.1,1770.0,1.12982]
[1746032713376,1.12995,1770.0,1769.9,1.1299]
[1746032713676,1.12995,1770.0,1769.8,46.63]
[1746032713677,1.62259331,1769.9,1769.8,1.12997]
[1746032713869,4.20379331,1769.9,1769.8,1.12997]
[1746032714271,4.20379331,1769.9,1769.8,4.95797]
[1746032715975,7.98179331,1769.9,1769.8,4.95797]
[1746032717081,7.98179331,1769.9,1769.8,1.12997]
[1746032718277,1.13026,1769.5,1769.4,1.13023]
[1746032718477,4.83063331,1769.5,1769.4,1.13027]
[1746032718777,8.60863331,1769.5,1769.4,1.13027]
[1746032718974,1.13027,1769.4,1769.3,8.61474571]
[1746032719175,3.27375331,1769.4,1769.3,8.61474571]
[1746032720583,3.27375331,1769.4,1769.3,1.13029]
[1746032721682,1.13039,1769.3,1769.2,1.13035]
[1746032721984,3.37147331,1769.3,1769.2,1.13035]
[1746032722281,2.87889,1769.3,1769.2,4.95835]
[1746032722581,2.87883,1769.3,1769.2,4.95835]
[1746032722785,3.37141331,1769.3,1769.2,4.95835]
[1746032726187,2.24108331,1769.3,1769.2,4.95835]
[1746032726687,3.37141331,1769.3,1769.2,4.95835]
[1746032730589,6.57921331,1769.3,1769.2,4.95835]
[1746032731090,5.44888331,1769.3,1769.2,4.95835]
[1746032732090,6.57921331,1769.3,1769.2,4.95835]
[1746032732388,5.44888331,1769.3,1769.2,4.95835]
[1746032732593,3.2078,1769.3,1769.2,4.95835]
[1746032732895,3.2078,1769.3,1769.2,6.73045]
[1746032733693,3.2078,1769.3,1769.2,6.63415]
[1746032734089,3.2078,1769.3,1769.2,4.95835]
[1746032734090,4.83071331,1769.3,1769.2,4.95835]
[1746032734285,6.58531331,1769.3,1769.2,4.95835]
[1746032734694,5.45498331,1769.3,1769.2,4.95835]
[1746032734991,6.58531331,1769.3,1769.2,4.95835]
[1746032737095,5.45498331,1769.3,1769.2,4.95835]
[1746032737293,6.58531331,1769.3,1769.2,4.95835]
[1746032739295,6.58531331,1769.3,1769.2,1.13035]
[1746032740001,1.13046,1769.2,1769.1,1.1304]
[1746032740197,4.17254331,1769.2,1769.1,1.1304]
[1746032741210,7.90454331,1769.2,1769.1,1.1304]
[1746032745519,2.82626,1769.1,1768.8,0.00506578]
[1746032745809,2.82667,1768.8,1768.3,2.82742]
[1746032746015,1.62341331,1768.6,1768.5,1.13079]
[1746032746312,1.13083,1768.6,1768.5,1.13079]
[1746032746514,2.16188331,1768.6,1768.5,1.13079]
[1746032747103,2.16188331,1768.6,1768.5,4.95879]
[1746032747104,3.29266331,1768.6,1768.5,4.95879]
[1746032747616,2.16188331,1768.6,1768.5,4.95879]
[1746032748114,3.2883222,1768.6,1768.5,4.95879]
[1746032748311,2.1575422,1768.6,1768.5,4.95879]
[1746032748512,3.2883222,1768.6,1768.5,4.95879]
[1746032751318,3.2883222,1768.6,1768.5,3.828]
[1746032751518,3.2883222,1768.6,1768.5,4.95884]
[1746032752112,3.2883222,1768.6,1768.5,3.828]
[1746032753023,3.2883222,1768.6,1768.5,4.95884]
[1746032753223,3.2883222,1768.6,1768.5,1.13084]
[1746032753926,1.13089,1768.5,1768.4,1.13085]
[1746032754127,6.04659,1768.5,1768.4,4.95885]
[1746032754421,6.53917331,1768.5,1768.4,4.95885]
[1746032758427,6.53917331,1768.5,1768.4,3.828]
[1746032759327,1.13097,1768.3,1768.2,1.13097]
[1746032759529,5.35755331,1768.3,1768.2,1.13097]
[1746032759925,5.04508331,1768.3,1768.0,3.2078]
[1746032760126,1.1311,1768.1,1768.0,4.3389]
[1746032760434,1.13124,1768.0,1767.9,1.13119]
[1746032760620,1.99674,1768.0,1767.9,1.13119]
[1746032760822,5.69474,1768.0,1767.9,1.13119]
[1746032761226,5.69474,1768.0,1767.9,4.95919]
[1746032762123,4.5635,1768.0,1767.9,4.95919]
[1746032763029,5.69466,1768.0,1767.9,4.95919]
[1746032763825,6.18724331,1768.0,1767.9,3.828]
[1746032764026,6.18724331,1768.0,1767.9,4.95922]
[1746032764330,6.18724331,1768.0,1767.9,1.13122]
[1746032764731,1.13129,1767.9,1767.8,1.13124]
[1746032765026,5.63407331,1767.9,1767.8,1.13124]
[1746032765228,4.50278331,1767.9,1767.6,2.82854]
[1746032765422,1.13139,1767.7,1767.6,1.13134]
[1746032765627,0.49258331,1767.7,1767.6,1.13134]
[1746032765834,1.1313,1767.8,1767.7,1.13129]
[1746032766232,0.49258331,1767.8,1767.7,1.13129]
[1746032767030,4.0102,1767.9,1767.8,1.13129]
[1746032767233,5.14142,1767.9,1767.8,1.13129]
[1746032767435,5.63400331,1767.9,1767.8,1.13129]
[1746032768129,5.63400331,1767.9,1767.8,4.95929]
[1746032769531,5.63400331,1767.9,1767.8,3.828]
[1746032769934,5.63400331,1767.9,1767.8,4.95929]
[1746032770635,5.63400331,1767.9,1767.8,3.828]
[1746032770829,5.63400331,1767.9,1767.8,4.95929]
[1746032771739,5.63400331,1767.9,1767.8,3.828]
[1746032772238,1.13129,1767.8,1767.7,4.9593]
[1746032772530,0.49258331,1767.8,1767.7,4.9593]
[1746032772736,1.62387331,1767.8,1767.7,4.9593]
[1746032773335,0.49258331,1767.8,1767.7,4.9593]
[1746032773639,4.0102,1767.9,1767.8,1.13129]
[1746032773831,5.14142,1767.9,1767.8,2.81189]
[1746032774037,6.90482,1767.9,1767.8,2.81189]
[1746032774338,5.7736,1767.9,1767.8,6.63989]
[1746032775138,7.39740331,1767.9,1767.8,4.95929]
[1746032775339,6.26618331,1767.9,1767.8,4.95929]
[1746032775643,7.39740331,1767.9,1767.8,4.95929]
[1746032775938,6.26618331,1767.9,1767.8,4.95929]
[1746032776341,6.26618331,1767.9,1767.8,6.67829]
[1746032776640,7.39740331,1767.9,1767.8,6.67829]
[1746032776940,6.26618331,1767.9,1767.8,6.67829]
[1746032778340,7.39740331,1767.9,1767.8,6.67829]
[1746032778532,6.26618331,1767.9,1767.8,6.67829]
[1746032779440,7.39740331,1767.9,1767.8,6.67829]
[1746032779949,7.39740331,1767.9,1767.8,4.95929]
[1746032780640,7.39740331,1767.9,1767.8,3.828]
[1746032780836,7.39740331,1767.9,1767.8,4.95929]
[1746032782041,6.90482,1767.9,1767.8,4.95929]
[1746032782841,7.39740331,1767.9,1767.8,4.95929]
[1746032784338,3.70038331,1767.9,1767.8,4.95929]
[1746032784543,3.2078,1767.9,1767.8,6.59289]
[1746032784843,4.33902,1767.9,1767.8,6.59289]
[1746032785041,6.02002,1767.9,1767.8,6.59289]
[1746032785343,4.8888,1767.9,1767.8,6.59289]
[1746032787540,6.02002,1767.9,1767.8,6.59289]
[1746032787844,4.8888,1767.9,1767.8,6.59289]
[1746032789938,6.02002,1767.9,1767.8,6.59289]
[1746032790139,6.51260331,1767.9,1767.8,4.95929]
[1746032790339,6.51260331,1767.9,1767.8,3.828]
[1746032790543,1.13148,1767.6,1767.5,1.13142]
[1746032790847,1.62406331,1767.6,1767.5,1.13142]
[1746032791035,8.11396331,1767.6,1767.5,1.13142]
[1746032791239,8.11396331,1767.6,1767.5,4.95942]
[1746032792747,1.13169,1767.3,1767.0,2.82939]
[1746032792949,4.33949,1767.3,1767.2,1.13164]
[1746032793136,4.83207331,1767.3,1767.2,4.95964]
[1746032793344,4.83207331,1767.3,1767.2,3.828]
[1746032794950,1.13186,1766.9,1766.8,7.44280362]
[1746032795152,4.17158331,1766.9,1766.8,8.57473362]
[1746032795344,3.2078,1767.0,1766.9,1.13186]
[1746032795650,7.37938331,1767.0,1766.9,1.13186]
[1746032795847,8.51118331,1767.0,1766.9,1.13186]
[1746032796149,8.51118331,1767.0,1766.9,4.95986]
[1746032796345,8.51118331,1767.0,1766.9,3.828]
[1746032796649,8.51118331,1767.0,1766.9,4.95986]
[1746032798160,8.51118331,1767.0,1766.9,3.828]
[1746032798363,8.51118331,1767.0,1766.9,4.95986]
[1746032799861,8.51118331,1767.0,1766.9,3.828]
[1746032800160,8.51118331,1767.0,1766.9,4.95986]
[1746032800663,8.51118331,1767.0,1766.9,3.828]
[1746032800862,8.51118331,1767.0,1766.9,4.95986]
[1746032801163,8.51118331,1767.0,1766.9,3.828]
[1746032803656,10.26488331,1767.0,1766.9,3.828]
[1746032804366,10.26488331,1767.0,1766.9,4.95986]
[1746032807067,10.26488331,1767.0,1766.9,3.828]
[1746032807365,10.26488331,1767.0,1766.9,4.95986]
[1746032809764,6.8868,1767.0,1766.9,4.95986]
[1746032810163,3.679,1767.0,1766.9,9.95986]
[1746032811169,5.95169,1767.2,1767.1,1.13174]
[1746032812672,6.44427331,1767.2,1767.1,1.13174]
[1746032813170,6.44427331,1767.2,1767.0,4.95976]
[1746032813171,1.13174,1767.1,1767.0,4.95976]
[1746032813371,3.23202331,1767.1,1767.0,4.95976]
[1746032813672,3.23202331,1767.1,1767.0,3.828]
[1746032817263,1.13193,1766.8,1766.7,1.13198]
[1746032817462,1.13193,1766.8,1766.5,3.68757]
[1746032817463,1.13202,1766.7,1766.6,1.13199]
[1746032817675,4.53902,1766.7,1766.6,1.13199]
[1746032821577,1.13206,1766.6,1766.5,6.62909]
[1746032821772,6.57294331,1766.6,1766.5,3.828]
[1746032823775,6.57294331,1766.6,1766.5,0.06]
[1746032824169,1.13255,1765.9,1765.7,7.44280362]
[1746032824480,1.6934,1766.7,1765.7,7.44280362]
[1746032824481,1.13257,1765.8,1765.7,11.10768362]
[1746032824776,1.13257,1765.8,1765.7,7.44280362]
[1746032824971,1.56218898,1765.8,1765.7,7.44280362]
[1746032825172,3.19378898,1765.8,1765.7,11.27080362]
[1746032826280,3.19378898,1765.8,1765.7,12.40343362]
[1746032826480,0.42497768,1765.8,1765.7,12.40343362]
[1746032826780,1.55754768,1765.8,1765.7,12.40343362]
[1746032826969,3.19744768,1765.8,1765.7,12.40343362]
[1746032827577,3.99454768,1765.8,1765.7,12.40343362]
[1746032827783,3.99454768,1765.8,1765.7,4.96063]
[1746032828082,2.77247,1765.8,1765.7,4.96063]
[1746032828471,2.77247,1765.8,1765.7,6.70023]
[1746032828876,1.6399,1765.8,1765.7,6.70023]
[1746032829781,2.77247,1765.8,1765.7,6.70023]
[1746032830181,2.77247,1765.8,1765.7,3.828]
[1746032830382,3.26505331,1765.8,1765.7,3.828]
[1746032831184,6.47285331,1765.8,1765.7,3.828]
[1746032832489,6.47285331,1765.8,1765.7,4.96063]
[1746032832882,2.77247,1765.8,1765.7,4.96063]
[1746032833082,4.80957,1765.8,1765.7,4.96063]
[1746032833389,1.7181,1765.9,1765.8,1.13257]
[1746032833583,1.7181,1765.9,1765.8,4.53397]
[1746032833584,6.52761,1765.9,1765.8,4.53397]
[1746032833989,6.52761,1765.9,1765.8,2.77067]
[1746032834289,6.52761,1765.9,1765.8,6.59867]
[1746032834686,6.52761,1765.9,1765.8,3.828]
[1746032834890,7.02019331,1765.9,1765.8,4.96057]
[1746032835191,5.3951,1765.9,1765.8,4.96057]
[1746032835491,1.13251,1765.9,1765.8,9.96057]
[1746032835889,1.13251,1765.9,1765.8,4.96057]
[1746032836488,2.89291,1765.9,1765.8,4.96057]
[1746032838982,2.89291,1765.9,1765.8,3.828]
[1746032839384,3.74791,1765.9,1765.8,4.96057]
[1746032839589,4.24049331,1765.9,1765.8,3.828]
[1746032840090,4.66788431,1765.9,1765.8,3.828]
[1746032840286,4.66800633,1765.9,1765.8,3.828]
[1746032840694,4.24049331,1765.9,1765.8,3.828]
[1746032841395,4.66804805,1765.9,1765.8,3.828]
[1746032842094,4.6681796,1765.9,1765.8,3.828]
[1746032844095,4.66856599,1765.9,1765.8,3.828]
[1746032844298,3.81356599,1765.9,1765.8,3.828]
[1746032845790,3.81390223,1765.9,1765.8,3.828]
[1746032848295,3.81390223,1765.9,1765.8,4.96057]
[1746032848597,0.42840892,1765.9,1765.8,9.96057]
[1746032848898,8.01811,1766.2,1766.1,1.13238]
[1746032849096,8.4470692,1766.2,1766.1,1.13238]
[1746032849499,8.4470692,1766.2,1766.1,2.75188]
[1746032849691,3.6367592,1766.2,1766.1,2.75188]
[1746032849888,0.4289592,1766.2,1766.1,2.75188]
[1746032850094,3.678,1766.4,1766.3,1.13225]
[1746032850395,2.8588,1766.6,1766.4,1.13218]
[1746032850396,3.678,1766.5,1766.4,1.13218]
[1746032850591,5.83373051,1766.5,1766.4,1.13218]
[1746032850792,6.96585051,1766.5,1766.4,1.13218]
[1746032851192,6.9658711,1766.5,1766.4,4.96018]
[1746032851397,7.45845441,1766.5,1766.4,3.828]
[1746032851597,9.13965441,1766.5,1766.4,3.828]
[1746032853100,9.13974552,1766.5,1766.4,3.828]
[1746032854403,9.13974552,1766.5,1766.4,4.96018]
[1746032854703,9.13974552,1766.5,1766.4,3.828]
[1746032855602,9.13974552,1766.5,1766.4,4.96018]
[1746032856001,6.96596221,1766.5,1766.4,4.96018]
[1746032856200,5.83384221,1766.5,1766.4,4.96018]
[1746032856407,4.10714221,1766.5,1766.4,4.96018]
[1746032856599,3.678,1766.5,1766.4,6.63018]
[1746032857001,3.0125,1766.7,1766.6,1.13206]
[1746032857198,4.57322564,1766.7,1766.6,1.13206]
[1746032858499,4.57286429,1766.7,1766.6,1.13206]
[1746032858800,3.44087429,1766.7,1766.6,1.13206]
[1746032859004,1.73187429,1766.7,1766.6,2.89886]
[1746032859504,2.86386429,1766.7,1766.6,2.89886]
[1746032859706,1.73187429,1766.7,1766.6,2.89886]
[1746032860404,1.3035,1766.7,1766.6,2.89886]
[1746032862099,3.0005,1766.7,1766.6,2.89886]
[1746032862498,3.0005,1766.7,1766.6,43.69886]
[1746032863604,3.0005,1766.7,1766.6,41.93206]
[1746032864801,1.13206,1766.6,1766.5,3.828]
[1746032865003,8.62917801,1766.6,1766.5,2.55877]
[1746032865209,1.13251,1765.9,1765.8,9.20230362]
[1746032865398,1.62509331,1765.9,1765.8,8.57537362]
[1746032865602,9.76297,1766.0,1765.9,1.13251]
[1746032865905,7.04775331,1766.0,1765.9,2.89201]
[1746032866204,7.47578187,1766.0,1765.9,6.72001]
[1746032866506,3.77778187,1766.0,1765.9,6.72001]
[1746032866894,3.34975331,1766.0,1765.9,5.5875]
[1746032867402,3.7778043,1766.0,1765.9,3.828]
[1746032867595,6.9856043,1766.0,1765.9,3.828]
[1746032867800,6.98561608,1766.0,1765.9,3.828]
[1746032868710,3.77781608,1766.0,1765.9,4.96051]
[1746032869002,6.06497,1766.0,1765.9,4.96051]
[1746032869204,1.7247,1766.0,1765.9,6.68421]
[1746032870105,2.85714,1766.0,1765.9,6.68421]
[1746032870305,4.83042,1766.1,1766.0,1.13244]
[1746032870605,5.25848135,1766.1,1766.0,1.7]
[1746032870806,6.43872,1766.1,1766.0,1.7]
[1746032871004,6.86678376,1766.1,1766.0,1.7]
[1746032871308,6.43872,1766.1,1766.0,6.66044]
[1746032871510,6.86686302,1766.1,1766.0,6.66044]
[1746032871709,0.8316,1766.5,1766.0,10.528]
[1746032871710,1.96377,1766.5,1766.0,10.528]
[1746032871910,1.6083,1766.5,1766.4,1.13218]
[1746032872211,1.1321,1766.6,1766.5,1.13212]
[1746032872212,1.13208,1766.6,1766.5,1.13212]
[1746032872404,3.76960831,1766.6,1766.5,1.13212]
[1746032872709,4.3397,1766.9,1766.8,1.13193]
[1746032872911,5.26030158,1766.9,1766.8,1.13193]
[1746032873097,6.97720158,1766.9,1766.8,1.13193]
[1746032873300,6.97714061,1766.9,1766.8,45.75993]
[1746032873505,3.699,1767.0,1766.9,1.13186]
[1746032873702,3.699,1767.0,1766.9,2.88016]
[1746032874308,3.699,1767.0,1766.9,6.70816]
[1746032875309,1.7169,1767.2,1767.1,1.13174]
[1746032875504,2.20948331,1767.2,1767.1,1.13174]
[1746032875915,3.34115331,1767.2,1767.1,1.13174]
[1746032876105,3.34115331,1767.2,1767.0,4.95975]
[1746032876106,1.13175,1767.1,1767.0,4.95975]
[1746032876403,1.7674,1767.1,1767.0,4.95975]
[1746032876609,2.25998331,1767.1,1767.0,4.95975]
[1746032877412,2.68790347,1767.1,1767.0,4.95975]
[1746032878010,2.25998331,1767.1,1767.0,4.95975]
[1746032878310,1.7674,1767.1,1767.0,4.95975]
[1746032879800,2.25998331,1767.1,1767.0,4.95975]
[1746032880706,3.39172331,1767.1,1767.0,4.95975]
[1746032881015,2.25998331,1767.1,1767.0,4.95975]
[1746032881914,3.39172331,1767.1,1767.0,3.828]
[1746032882109,12.02734412,1767.1,1767.0,3.828]
[1746032882501,1.13207,1766.7,1766.6,1.13205]
[1746032882709,8.95727412,1766.7,1766.6,1.13205]
[1746032885411,1.13206,1766.6,1766.5,3.828]
[1746032885610,0.92040412,1766.6,1766.5,4.96012]
[1746032885909,2.56710412,1766.6,1766.5,4.96012]
[1746032886313,3.69916412,1766.6,1766.5,4.96012]
[1746032886613,2.56710412,1766.6,1766.5,4.96012]
[1746032887003,3.69916412,1766.6,1766.5,4.96012]
[1746032887207,2.56710412,1766.6,1766.5,4.96012]
[1746032888918,2.13928331,1766.6,1766.5,4.96012]
[1746032889110,3.69934078,1766.6,1766.5,3.828]
[1746032889308,3.69934078,1766.6,1766.5,4.96012]
[1746032889818,2.56728078,1766.6,1766.5,4.96012]
[1746032890022,2.07469747,1766.6,1766.5,4.96012]
[1746032890313,1.6467,1766.6,1766.5,4.96012]
[1746032890817,3.69933623,1766.6,1766.5,4.96012]
[1746032892117,8.69933623,1766.6,1766.5,3.828]
[1746032892817,8.69940448,1766.6,1766.5,3.828]
[1746032893315,3.69940448,1766.6,1766.5,4.96012]
[1746032893918,3.69940448,1766.6,1766.5,3.828]
[1746032894115,8.69940448,1766.6,1766.5,3.828]
[1746032895718,3.69940448,1766.6,1766.5,3.828]
[1746032895919,3.69948666,1766.6,1766.5,3.828]
[1746032896320,3.69956186,1766.6,1766.5,3.828]
[1746032897024,8.6996158,1766.6,1766.5,3.828]
[1746032897208,3.6996158,1766.6,1766.5,3.828]
[1746032897413,3.6996158,1766.6,1766.5,4.96012]
[1746032898118,3.6996158,1766.6,1766.5,3.828]
[1746032898313,3.6996826,1766.6,1766.5,3.828]
[1746032898513,3.6996826,1766.6,1766.5,4.96012]
[1746032899421,3.6996826,1766.6,1766.5,3.828]
[1746032901023,8.6996826,1766.6,1766.5,2.68533]
[1746032901317,1.13257,1765.9,1765.8,1.13253]
[1746032901522,1.56134405,1765.9,1765.8,1.13253]
[1746032902014,3.26426634,1765.9,1765.8,2.77703]
[1746032902211,3.26426634,1765.9,1765.8,1.13253]
[1746032902424,1.13257,1765.8,1765.7,1.13261]
[1746032902722,0.42879634,1765.8,1765.7,1.13261]
[1746032902920,1.56136634,1765.8,1765.7,2.85091]
[1746032903113,1.13269,1765.7,1765.6,1.13266]
[1746032903314,2.62117965,1765.7,1765.6,1.1327]
[1746032903518,3.26129634,1765.7,1765.6,1.1327]
[1746032904020,3.26129634,1765.7,1765.6,2.851]
[1746032905123,3.26076661,1765.7,1765.6,2.851]
[1746032905326,3.75334992,1765.7,1765.6,1.7183]
[1746032905727,3.75334992,1765.7,1765.6,2.851]
[1746032906313,3.75334992,1765.7,1765.5,3.828]
[1746032906314,1.1327,1765.6,1765.5,3.828]
[1746032906520,6.96423785,1765.6,1765.5,3.828]
[1746032906720,6.96423785,1765.6,1765.5,4.96076]
[1746032907524,6.9644645,1765.6,1765.5,4.96076]
[1746032907825,5.2613645,1765.6,1765.5,4.96076]
[1746032908025,4.76878119,1765.6,1765.5,4.96076]
[1746032908221,6.9218,1765.8,1765.7,1.13263]
[1746032908417,1.62521331,1765.7,1765.6,2.88867]
[1746032908729,3.26376362,1765.7,1765.6,1.13267]
[1746032908915,1.1327,1765.6,1765.5,3.828]
[1746032909118,6.99961693,1765.6,1765.5,3.828]
[1746032909721,6.99961693,1765.6,1765.5,4.96076]
[1746032910125,6.99961693,1765.6,1765.5,3.828]
[1746032911129,6.99954568,1765.6,1765.5,3.828]
[1746032912532,6.99954568,1765.6,1765.5,4.96076]
[1746032912825,6.99954568,1765.6,1765.5,3.828]
[1746032913233,1.13305,1765.1,1764.7,2.83307]
[1746032913431,8.57643331,1765.1,1765.0,2.82293]
[1746032913623,8.08385,1765.1,1765.0,2.82293]
[1746032913831,6.9508,1765.1,1765.0,2.82293]
[1746032914325,6.9508,1765.1,1765.0,6.65093]
[1746032915133,3.2078,1765.3,1765.2,1.13295]
[1746032915823,3.2078,1765.3,1765.2,2.77305]
[1746032916130,3.2078,1765.3,1765.2,6.60105]
[1746032916328,4.34069,1765.3,1765.2,6.60105]
[1746032916631,3.70038331,1765.3,1765.2,6.60105]
[1746032917333,3.2078,1765.3,1765.2,6.60105]
[1746032917932,3.2078,1765.3,1765.2,11.60105]
[1746032918527,4.34069,1765.3,1765.2,11.60105]
[1746032918732,3.2078,1765.3,1765.2,6.60105]
[1746032919729,4.34069,1765.3,1765.2,6.60105]
[1746032919923,3.2078,1765.3,1765.2,6.60105]
[1746032920127,4.87584,1765.4,1765.3,1.13289]
[1746032920323,5.36842331,1765.4,1765.3,2.84909]
[1746032920528,3.743,1765.4,1765.3,2.84909]
[1746032921236,5.30358061,1765.4,1765.3,6.67709]
[1746032921837,6.92808061,1765.4,1765.3,6.67709]
[1746032923240,4.17075061,1765.4,1765.3,6.67709]
[1746032923430,5.30358061,1765.4,1765.3,3.828]
[1746032923735,5.79616392,1765.4,1765.3,4.96089]
[1746032923936,5.3039338,1765.4,1765.3,4.96089]
[1746032924331,4.1711038,1765.4,1765.3,4.96089]
[1746032924528,5.3039338,1765.4,1765.3,4.96089]
[1746032925038,3.743,1765.4,1765.3,4.96089]
[1746032925437,5.30417789,1765.4,1765.3,4.96089]
[1746032925630,5.30420008,1765.4,1765.3,4.96089]
[1746032926944,5.79678339,1765.4,1765.3,3.828]
[1746032927237,7.47828339,1765.4,1765.3,3.828]
[1746032927536,7.47870051,1765.4,1765.3,4.96089]
[1746032928130,7.47870051,1765.4,1765.3,3.828]
[1746032928338,7.47870051,1765.4,1765.3,4.96089]
[1746032929139,7.47870051,1765.4,1765.3,3.828]
[1746032929436,7.47927913,1765.4,1765.3,3.828]
[1746032929849,7.47927913,1765.4,1765.3,4.96089]
[1746032930637,4.17236582,1765.4,1765.3,4.96089]
[1746032930833,5.30519582,1765.4,1765.3,4.96089]
[1746032931037,5.79777913,1765.4,1765.3,6.68239]
[1746032931247,7.39367913,1765.4,1765.3,6.68239]
[1746032932941,7.39451781,1765.4,1765.3,6.68239]
[1746032935846,7.39485171,1765.4,1765.3,6.68239]
[1746032936750,7.39498802,1765.4,1765.3,6.68239]
[1746032937550,7.39498802,1765.4,1765.3,3.828]
[1746032938850,7.39498802,1765.4,1765.3,4.96089]
[1746032939550,7.39498802,1765.4,1765.3,3.828]
[1746032943461,7.39505482,1765.4,1765.3,3.828]
[1746032945169,7.39507506,1765.4,1765.3,3.828]
[1746032949066,12.39507506,1765.4,1765.3,3.828]
[1746032949466,12.39507506,1765.4,1765.3,0.87101]
[1746032949663,1.13315,1764.9,1764.8,3.66751]
[1746032949865,8.51471175,1764.9,1764.8,3.66751]
[1746032950162,10.16121175,1764.9,1764.8,7.49551]
[1746032950563,10.1609063,1764.9,1764.8,7.49551]
[1746032951067,7.3812563,1764.9,1764.8,7.49551]
[1746032951267,4.1734563,1764.9,1764.8,7.49551]
[1746032951571,5.3066063,1764.9,1764.8,7.49551]
[1746032951972,4.1734563,1764.9,1764.8,7.49551]
[1746032952274,5.3066063,1764.9,1764.8,7.49551]
[1746032952570,5.306442,1764.9,1764.8,7.49551]
[1746032954170,0.430292,1764.9,1764.8,12.49551]
[1746032955168,0.430292,1764.9,1764.8,7.49551]
[1746032956076,4.34087,1765.1,1765.0,1.13308]
[1746032956367,0.42991128,1765.1,1765.0,1.13308]
[1746032956574,0.42991128,1765.1,1765.0,6.13308]
[1746032956763,0.42991128,1765.1,1765.0,7.89328]
[1746032957177,0.42991128,1765.1,1765.0,6.72128]
[1746032957873,1.13295,1765.2,1765.0,6.72128]
[1746032958078,4.87594,1765.3,1765.2,1.13295]
[1746032958278,5.79845186,1765.3,1765.2,1.13295]
[1746032958576,5.30586665,1765.3,1765.2,2.84245]
[1746032959179,5.30586665,1765.3,1765.2,6.67045]
[1746032959477,5.30581665,1765.3,1765.2,6.67045]
[1746032959879,4.17292365,1765.3,1765.2,6.67045]
[1746032960180,5.30581365,1765.3,1765.2,6.67045]
[1746032960378,4.17292365,1765.3,1765.2,6.67045]
[1746032960580,3.743,1765.3,1765.2,6.67045]
[1746032961172,4.17288142,1765.3,1765.2,6.67045]
[1746032961476,5.30577142,1765.3,1765.2,6.67045]
[1746032962080,8.51357142,1765.3,1765.2,6.67045]
[1746032964682,5.30577142,1765.3,1765.2,6.67045]
[1746032965383,4.87589,1765.3,1765.2,6.67045]
[1746032965573,5.30592284,1765.3,1765.2,6.67045]
[1746032965773,5.30592284,1765.3,1765.2,5.79275]
[1746032965984,9.00630615,1765.3,1765.2,5.79275]
[1746032966283,8.57627331,1765.3,1765.2,5.79275]
[1746032966685,8.57627331,1765.3,1765.2,4.6598]
[1746032966873,8.57627331,1765.3,1765.2,3.828]
[1746032967080,9.00639074,1765.3,1765.2,3.828]
[1746032967385,14.00639074,1765.3,1765.2,3.828]
[1746032967783,9.00639074,1765.3,1765.2,3.828]
[1746032970484,14.00639074,1765.3,1765.2,3.828]
[1746032972592,9.00639074,1765.3,1765.2,3.828]
[1746032972782,9.00634635,1765.3,1765.2,3.828]
[1746032974586,8.57627331,1765.3,1765.2,3.828]
[1746032974890,9.00632174,1765.3,1765.2,3.828]
[1746032976590,9.00625868,1765.3,1765.2,3.828]
[1746032978392,9.00619565,1765.3,1765.2,3.828]
[1746032979293,9.00619565,1765.3,1765.2,5.432]
[1746032981191,9.00619565,1765.3,1765.2,3.828]
[1746032983595,9.00619565,1765.3,1765.2,5.5717]
[1746032983890,9.00628484,1765.3,1765.2,5.5717]
[1746032984493,9.0063105,1765.3,1765.2,5.5717]
[1746032985594,9.0063105,1765.3,1765.2,3.828]
[1746032985999,10.7374105,1765.3,1765.2,3.828]
[1746032986691,10.7374105,1765.3,1765.2,4.96095]
[1746032986892,7.38083719,1765.3,1765.2,4.96095]
[1746032987092,7.38083719,1765.3,1765.2,6.55965]
[1746032987392,8.51372719,1765.3,1765.2,6.55965]
[1746032987593,8.51367521,1765.3,1765.2,6.55965]
[1746032988689,8.51370397,1765.3,1765.2,6.55965]
[1746032989298,8.51371413,1765.3,1765.2,6.55965]
[1746032992996,8.94382259,1765.3,1765.2,6.55965]
[1746032993187,8.51379846,1765.3,1765.2,6.55965]
[1746032995604,8.51383179,1765.3,1765.2,6.55965]
[1746032996104,9.0064151,1765.3,1765.2,5.4267]
[1746032996307,10.7305151,1765.3,1765.2,5.4267]
[1746032996600,10.7305151,1765.3,1765.2,3.828]
[1746032997502,10.7305151,1765.3,1765.2,4.96095]
[1746032998506,10.73060773,1765.3,1765.2,4.96095]
[1746032998701,10.73060773,1765.3,1765.2,6.59295]
[1746032999403,10.73060773,1765.3,1765.2,5.46]